bitfinex/quotes_BTCUSD_20240908
["timestamp","ask_amount","ask_price","bid_price","bid_amount"]
[1725776951658,0.17404474,54534.0,54533.0,0.841642]
[1725776952699,0.17204474,54534.0,54533.0,0.841642]
[1725776952912,0.16704474,54534.0,54533.0,0.841642]
[1725776953143,0.16904474,54534.0,54533.0,0.841642]
[1725776953350,0.16804474,54534.0,54533.0,0.841642]
[1725776953560,0.02956918,54534.0,54533.0,0.841642]
[1725776953758,0.03056918,54534.0,54533.0,0.841642]
[1725776953997,0.03156918,54534.0,54533.0,0.841642]
[1725776954397,0.16901539,54534.0,54533.0,0.841642]
[1725776954628,0.03156918,54534.0,54533.0,0.841642]
[1725776955233,0.03156918,54534.0,54533.0,0.643442]
[1725776955841,0.002816,54534.0,54533.0,0.643442]
[1725776956048,0.14026221,54534.0,54533.0,0.643442]
[1725776958132,0.002816,54534.0,54533.0,0.643442]
[1725776958736,0.002816,54534.0,54533.0,0.386717]
[1725776959187,0.16901543,54534.0,54533.0,0.643442]
[1725776959393,0.16901868,54534.0,54533.0,0.643442]
[1725776959747,0.16902045,54534.0,54533.0,0.643442]
[1725776960420,0.16802045,54534.0,54533.0,0.643442]
[1725776961217,0.16902045,54534.0,54533.0,0.643442]
[1725776961440,0.16902045,54534.0,54533.0,0.129992]
[1725776962114,0.16802045,54534.0,54533.0,0.386717]
[1725776962323,0.16802045,54534.0,54533.0,0.129992]
[1725776962548,0.03156922,54534.0,54533.0,0.129992]
[1725776962772,0.13747046,54537.0,54533.0,0.129992]
[1725776963222,0.02875353,54536.0,54533.0,0.129992]
[1725776963685,0.15710953,54536.0,54533.0,0.00163]
[1725776963942,0.02875353,54536.0,54533.0,0.00163]
[1725776964165,0.15710853,54536.0,54533.0,0.00163]
[1725776964856,0.128358,54535.0,54533.0,0.00163]
[1725776965325,0.385896,54534.0,54533.0,0.00163]
[1725776965976,0.385896,54534.0,54533.0,0.00263]
[1725776966870,0.386896,54534.0,54533.0,0.00463]
[1725776967083,0.387896,54534.0,54533.0,0.00563]
[1725776968348,0.131176,54534.0,54533.0,0.00563]
[1725776969515,0.387896,54534.0,54533.0,0.00563]
[1725776970171,0.644616,54534.0,54533.0,0.00563]
[1725776970818,0.643616,54534.0,54533.0,0.00363]
[1725776971024,0.643616,54534.0,54533.0,0.00263]
[1725776972534,0.642616,54534.0,54533.0,0.00163]
[1725776972751,0.642616,54534.0,54533.0,0.00263]
[1725776973376,0.67137194,54534.0,54533.0,0.00163]
[1725776973582,0.67137194,54534.0,54533.0,0.08833]
[1725776974012,0.65711489,54534.0,54533.0,0.08833]
[1725776974625,0.79452082,54534.0,54533.0,0.08833]
[1725776974776,0.65711489,54534.0,54533.0,0.08833]
[1725776974980,0.79451936,54534.0,54533.0,0.08833]
[1725776975817,0.76576342,54534.0,54533.0,0.08833]
[1725776978043,0.51344,54534.0,54533.0,0.08833]
[1725776978306,0.6418,54534.0,54533.0,0.08833]
[1725776979344,0.67055564,54534.0,54533.0,0.08833]
[1725776980131,0.38508,54534.0,54533.0,0.08833]
[1725776982382,0.41383561,54534.0,54533.0,0.08833]
[1725776985232,0.41383561,54534.0,54533.0,0.19603]
[1725776988097,0.57872098,54534.0,54533.0,0.19603]
[1725776989500,0.41383561,54534.0,54533.0,0.19603]
[1725776990112,0.57872098,54534.0,54533.0,0.11033]
[1725776990981,0.57872098,54534.0,54533.0,0.10933]
[1725776991618,0.58372098,54534.0,54533.0,0.10933]
[1725776992492,0.58572098,54534.0,54533.0,0.10933]
[1725776992898,0.55696537,54534.0,54533.0,0.10933]
[1725776995969,0.55696537,54534.0,54533.0,0.20013]
[1725776996401,0.39208,54534.0,54533.0,0.20013]
[1725776997239,0.42083602,54534.0,54533.0,0.20013]
[1725776999150,0.16411602,54534.0,54533.0,0.20013]
[1725776999818,0.13536,54534.0,54533.0,0.20013]
[1725777000450,0.007,54534.0,54533.0,0.841942]
[1725777000655,0.14432988,54534.0,54533.0,0.841942]
[1725777000859,0.007,54534.0,54533.0,1.098667]
[1725777001086,0.007,54534.0,54533.0,0.841942]
[1725777001302,0.007816,54534.0,54533.0,0.841942]
[1725777001525,0.007816,54534.0,54533.0,0.585217]
[1725777001734,0.007816,54534.0,54533.0,0.328492]
[1725777002457,0.14515393,54534.0,54533.0,0.328492]
[1725777004009,0.17390893,54534.0,54533.0,0.328492]
[1725777005787,0.14515393,54534.0,54533.0,0.328492]
[1725777006232,0.007816,54534.0,54533.0,0.31285543]
[1725777007789,0.14515393,54534.0,54533.0,0.31285543]
[1725777008668,0.14515393,54534.0,54533.0,0.18449343]
[1725777008890,0.14515393,54534.0,54533.0,0.31285543]
[1725777009109,0.03657103,54534.0,54533.0,0.31285543]
[1725777009546,0.17395355,54534.0,54533.0,0.31285543]
[1725777009813,0.17395355,54534.0,54533.0,0.18449343]
[1725777010019,0.17395355,54534.0,54533.0,0.31285543]
[1725777010446,0.17395355,54534.0,54533.0,0.18449343]
[1725777011536,0.03657103,54534.0,54533.0,0.18449343]
[1725777012164,0.257522,54538.0,54533.0,0.18449343]
[1725777012165,0.13738006,54536.0,54533.0,0.18449343]
[1725777012375,0.12836,54534.0,54533.0,0.18449343]
[1725777012573,0.15711516,54534.0,54533.0,0.18449343]
[1725777012982,0.41383516,54534.0,54533.0,0.18449343]
[1725777013394,0.41383516,54534.0,54533.0,0.18612543]
[1725777013827,0.41465116,54534.0,54533.0,0.18612543]
[1725777014626,0.41665116,54534.0,54533.0,0.18612543]
[1725777015829,0.387896,54534.0,54533.0,0.18612543]
[1725777017028,0.131176,54534.0,54533.0,0.18612543]
[1725777017975,0.002816,54534.0,54533.0,0.31448743]
[1725777018183,0.002816,54534.0,54533.0,0.57121243]
[1725777019867,0.03157022,54534.0,54533.0,0.57121243]
[1725777022782,0.13737789,54539.0,54537.0,0.199]
[1725777022785,0.13737789,54539.0,54538.0,0.21955]
[1725777023265,0.13737789,54540.0,54539.0,0.128348]
[1725777023488,0.23737789,54540.0,54539.0,0.219548]
[1725777023977,0.23737789,54540.0,54539.0,0.212548]
[1725777024201,0.23737789,54540.0,54539.0,0.320348]
[1725777024425,0.23737789,54540.0,54539.0,0.309348]
[1725777025122,0.24937789,54540.0,54539.0,0.309348]
[1725777025349,0.25837789,54540.0,54539.0,0.309348]
[1725777029245,0.25837789,54540.0,54539.0,0.199]
[1725777029477,0.38672389,54540.0,54539.0,0.199]
[1725777029684,0.249346,54540.0,54539.0,0.199]
[1725777029901,0.38668173,54540.0,54539.0,0.199]
[1725777032570,0.249346,54540.0,54539.0,0.199]
[1725777034648,0.128351,54538.0,54536.0,0.094]
[1725777036202,0.136351,54538.0,54536.0,0.095]
[1725777036437,0.142351,54538.0,54536.0,0.096]
[1725777038521,0.014,54538.0,54536.0,0.096]
[1725777044819,0.142351,54538.0,54536.0,0.096]
[1725777045496,0.014,54538.0,54536.0,0.096]
[1725777045724,0.128353,54537.0,54536.0,0.096]
[1725777046623,0.128353,54537.0,54536.0,0.095]
[1725777047073,0.132353,54537.0,54536.0,0.095]
[1725777047514,0.132353,54537.0,54536.0,0.094]
[1725777047736,0.139353,54537.0,54536.0,0.095]
[1725777050147,0.139353,54537.0,54536.0,0.096632]
[1725777056124,0.011,54537.0,54536.0,0.096632]
[1725777056352,0.011,54537.0,54536.0,0.213732]
[1725777056564,0.011,54537.0,54536.0,0.855509]
[1725777058052,0.011,54537.0,54536.0,0.598798]
[1725777059328,0.0397538,54537.0,54536.0,0.598798]
[1725777065347,0.0397538,54537.0,54536.0,0.213732]
[1725777065988,0.011,54537.0,54536.0,0.213732]
[1725777066429,0.007,54537.0,54536.0,0.213732]
[1725777067316,0.29332614,54538.0,54536.0,0.212732]
[1725777067857,0.004,54537.0,54536.0,0.212732]
[1725777068065,0.29332614,54538.0,54536.0,0.212732]
[1725777068477,0.29332614,54538.0,54536.0,0.213732]
[1725777068689,0.29532614,54538.0,54536.0,0.213732]
[1725777068895,0.128353,54537.0,54536.0,0.213732]
[1725777071440,0.128353,54537.0,54536.0,0.212732]
[1725777071914,0.128353,54537.0,54536.0,0.214732]
[1725777072084,0.385059,54537.0,54536.0,0.214732]
[1725777072452,0.385059,54537.0,54536.0,0.120732]
[1725777073097,0.385059,54537.0,54536.0,0.003632]
[1725777074574,0.385059,54537.0,54536.0,0.001632]
[1725777074575,0.386059,54537.0,54536.0,0.001632]
[1725777074929,0.386059,54537.0,54536.0,0.002632]
[1725777080643,0.1256675,54537.0,54536.0,0.002632]
[1725777081079,0.3823735,54537.0,54536.0,0.002632]
[1725777081302,0.3823735,54537.0,54536.0,0.095732]
[1725777082901,0.6740795,54537.0,54536.0,0.002632]
[1725777083180,1.56610993,54537.0,54536.0,0.002632]
[1725777083394,0.9834105,54537.0,54536.0,0.002632]
[1725777083845,1.2401165,54537.0,54536.0,0.002632]
[1725777084072,1.2401165,54537.0,54536.0,0.001632]
[1725777084298,1.2451165,54537.0,54536.0,0.002632]
[1725777084548,1.2541165,54537.0,54536.0,0.003632]
[1725777085016,0.7860795,54537.0,54536.0,0.003632]
[1725777085225,0.9404075,54537.0,54536.0,0.003632]
[1725777085451,1.1971135,54537.0,54536.0,0.003632]
[1725777086977,0.9404075,54537.0,54536.0,0.003632]
[1725777087430,1.1971135,54537.0,54536.0,0.003632]
[1725777088079,1.4470835,54537.0,54536.0,0.003632]
[1725777088749,1.3697835,54537.0,54536.0,0.003632]
[1725777088971,0.9415685,54537.0,54536.0,0.003632]
[1725777090092,1.3842735,54537.0,54536.0,0.003632]
[1725777090545,1.6409795,54537.0,54536.0,0.003632]
[1725777091027,1.3842735,54537.0,54536.0,0.003632]
[1725777091643,1.6409795,54537.0,54536.0,0.003632]
[1725777093186,1.3842735,54537.0,54536.0,0.003632]
[1725777093587,1.6409795,54537.0,54536.0,0.003632]
[1725777098787,1.6883605,54537.0,54536.0,0.003632]
[1725777099437,1.71711796,54537.0,54536.0,0.003632]
[1725777100572,1.44595596,54537.0,54536.0,0.003632]
[1725777106942,1.4171985,54537.0,54536.0,0.003632]
[1725777107369,1.1613075,54537.0,54536.0,0.003632]
[1725777107582,0.7868945,54537.0,54536.0,0.003632]
[1725777107790,1.0436005,54537.0,54536.0,0.003632]
[1725777109373,0.7868945,54537.0,54536.0,0.003632]
[1725777109851,1.0436005,54537.0,54536.0,0.003632]
[1725777110312,0.81565158,54537.0,54536.0,0.003632]
[1725777110789,0.80565158,54537.0,54536.0,0.003632]
[1725777111054,0.30938024,54537.0,54536.0,0.601098]
[1725777111290,0.14457208,54537.0,54536.0,0.216032]
[1725777112914,0.04457208,54537.0,54536.0,0.216032]
[1725777115218,0.17292508,54537.0,54536.0,0.216032]
[1725777115653,0.27292508,54537.0,54536.0,0.216032]
[1725777115865,0.244168,54537.0,54536.0,0.216032]
[1725777117411,0.500874,54537.0,54536.0,0.216032]
[1725777119424,0.52962837,54537.0,54536.0,0.216032]
[1725777119874,0.38764287,54537.0,54536.0,0.216032]
[1725777120330,0.51599587,54537.0,54536.0,0.216032]
[1725777121323,0.51600627,54537.0,54536.0,0.216032]
[1725777121560,0.37860943,54537.0,54536.0,0.20094306]
[1725777122970,0.63531543,54537.0,54536.0,0.20094306]
[1725777126029,0.60656106,54537.0,54536.0,0.20094306]
[1725777129471,0.63531695,54537.0,54536.0,0.20094306]
[1725777129921,0.80019134,54537.0,54536.0,0.20094306]
[1725777131131,1.05689734,54537.0,54536.0,0.20094306]
[1725777131362,1.05689734,54537.0,54536.0,0.20257306]
[1725777131686,0.89202295,54537.0,54536.0,0.20257306]
[1725777132147,0.89283795,54537.0,54536.0,0.20257306]
[1725777135965,0.86408206,54537.0,54536.0,0.20257306]
[1725777138742,0.86408206,54537.0,54536.0,0.11933]
[1725777139194,0.89283782,54537.0,54536.0,0.11933]
[1725777143255,0.89283782,54537.0,54536.0,0.00163]
[1725777143460,0.89483782,54537.0,54536.0,0.00163]
[1725777143886,0.99007868,54537.0,54536.0,0.00163]
[1725777144096,0.92583782,54537.0,54536.0,0.00163]
[1725777144574,0.92783782,54537.0,54536.0,0.00163]
[1725777144785,0.92583782,54537.0,54536.0,0.00163]
[1725777145220,0.92783782,54537.0,54536.0,0.00163]
[1725777145430,0.92583782,54537.0,54536.0,0.00163]
[1725777145875,0.89708206,54537.0,54536.0,0.00163]
[1725777149296,0.9258384,54537.0,54536.0,0.00163]
[1725777151561,0.9258384,54537.0,54536.0,0.21143]
[1725777153319,0.8928384,54537.0,54536.0,0.21143]
[1725777156283,0.86408206,54537.0,54536.0,0.21143]
[1725777158629,0.000815,54537.0,54536.0,0.21143]
[1725777158870,0.000815,54537.0,54536.0,0.6001628]
[1725777159114,0.000816,54539.0,54538.0,0.385051]
[1725777159379,0.000816,54540.0,54539.0,0.385045]
[1725777159606,0.000816,54540.0,54539.0,0.851542]
[1725777161057,0.001816,54540.0,54539.0,0.875542]
[1725777161501,0.000816,54540.0,54539.0,0.851542]
[1725777161728,0.000816,54540.0,54539.0,0.862542]
[1725777162632,0.000816,54540.0,54539.0,0.2208]
[1725777163089,0.001816,54540.0,54539.0,0.2338]
[1725777164481,0.130162,54540.0,54539.0,0.2338]
[1725777165609,0.001816,54540.0,54539.0,0.2338]
[1725777169801,0.130162,54540.0,54539.0,0.2338]
[1725777170014,0.001816,54540.0,54539.0,0.2338]
[1725777170882,0.386854,54540.0,54539.0,0.2338]
[1725777172025,0.02874338,54541.0,54539.0,0.2338]
[1725777172252,0.385038,54540.0,54539.0,0.2338]
[1725777172927,0.128346,54540.0,54539.0,0.2208]
[1725777173138,0.128346,54540.0,54539.0,0.2098]
[1725777173387,0.128346,54540.0,54539.0,0.2218]
[1725777173804,0.128346,54540.0,54539.0,0.2098]
[1725777174020,0.129346,54540.0,54539.0,0.2328]
[1725777174240,0.129346,54540.0,54539.0,0.2228]
[1725777174686,0.129346,54540.0,54539.0,0.2338]
[1725777176227,0.001,54540.0,54539.0,0.2338]
[1725777177531,0.001,54540.0,54539.0,0.23543]
[1725777177762,0.001815,54540.0,54539.0,0.23543]
[1725777182094,0.03056474,54540.0,54539.0,0.23543]
[1725777189499,0.001815,54540.0,54539.0,0.23543]
[1725777194225,0.130161,54540.0,54539.0,0.23543]
[1725777195566,0.643545,54540.0,54539.0,0.14143]
[1725777195833,0.386853,54540.0,54539.0,0.14143]
[1725777196061,0.386853,54540.0,54539.0,0.23113]
[1725777196519,0.385853,54540.0,54539.0,0.20713]
[1725777196757,0.385853,54540.0,54539.0,0.21213]
[1725777196979,0.385853,54540.0,54539.0,0.20713]
[1725777197404,0.386853,54540.0,54539.0,0.21813]
[1725777197852,0.385853,54540.0,54539.0,0.21113]
[1725777198065,0.129161,54540.0,54539.0,0.21113]
[1725777199221,0.1579129,54540.0,54539.0,0.21113]
[1725777199458,0.130161,54540.0,54539.0,0.21813]
[1725777199708,0.386853,54540.0,54539.0,0.21813]
[1725777199945,0.130161,54540.0,54539.0,0.21813]
[1725777200620,0.386853,54540.0,54539.0,0.21813]
[1725777201508,0.52410427,54540.0,54539.0,0.21813]
[1725777201937,0.386853,54540.0,54539.0,0.21813]
[1725777202269,0.130161,54540.0,54539.0,0.21813]
[1725777202566,0.13906627,54540.0,54539.0,0.21813]
[1725777203675,0.001815,54540.0,54539.0,0.21813]
[1725777205461,0.03056553,54540.0,54539.0,0.21813]
[1725777205941,0.001815,54540.0,54539.0,0.21813]
[1725777207571,0.001815,54540.0,54539.0,0.603175]
[1725777213368,0.03056581,54540.0,54539.0,0.603175]
[1725777213847,0.16818567,54540.0,54539.0,0.603175]
[1725777214929,0.16818167,54540.0,54539.0,0.603175]
[1725777217321,0.16818167,54540.0,54539.0,0.21813]
[1725777217601,0.03056581,54540.0,54539.0,0.21813]
[1725777219307,0.130161,54540.0,54539.0,0.21813]
[1725777219520,0.386853,54540.0,54539.0,0.12843]
[1725777223636,0.55197422,54540.0,54539.0,0.12843]
[1725777223849,0.41560509,54540.0,54539.0,0.12843]
[1725777224063,0.58072631,54540.0,54539.0,0.12843]
[1725777224482,0.41560509,54540.0,54539.0,0.12843]
[1725777225890,0.386853,54540.0,54539.0,0.12843]
[1725777226123,0.551955,54540.0,54539.0,0.12843]
[1725777227251,0.386853,54540.0,54539.0,0.12843]
[1725777232319,0.4156051,54540.0,54539.0,0.12843]
[1725777233754,0.4156051,54540.0,54539.0,0.01263]
[1725777236328,0.386853,54540.0,54539.0,0.01263]
[1725777240375,0.41560561,54540.0,54539.0,0.01263]
[1725777243257,0.67229761,54540.0,54539.0,0.01263]
[1725777246002,0.643545,54540.0,54539.0,0.01263]
[1725777249238,0.67229791,54540.0,54539.0,0.01263]
[1725777254300,0.67229791,54540.0,54539.0,0.10763]
[1725777255914,0.643545,54540.0,54539.0,0.10763]
[1725777256357,0.385038,54540.0,54539.0,0.10763]
[1725777257475,0.64173,54540.0,54539.0,0.10763]
[1725777258395,0.385038,54540.0,54539.0,0.10763]
[1725777258854,0.64173,54540.0,54539.0,0.10763]
[1725777259075,0.385038,54540.0,54539.0,0.10763]
[1725777259316,0.41379084,54540.0,54539.0,0.10763]
[1725777260492,0.41460584,54540.0,54539.0,0.10763]
[1725777260944,0.67129784,54540.0,54539.0,0.10763]
[1725777261165,0.41460584,54540.0,54539.0,0.10763]
[1725777264623,0.67129784,54540.0,54539.0,0.10763]
[1725777264840,0.41460584,54540.0,54539.0,0.10763]
[1725777265971,0.385853,54540.0,54539.0,0.10763]
[1725777266227,0.642545,54540.0,54539.0,0.10763]
[1725777267344,0.385853,54540.0,54539.0,0.10763]
[1725777267587,0.385853,54540.0,54539.0,0.21403]
[1725777269144,0.41460529,54540.0,54539.0,0.21403]
[1725777275981,0.385853,54540.0,54539.0,0.21403]
[1725777279222,0.41460512,54540.0,54539.0,0.21403]
[1725777285206,0.67129712,54540.0,54539.0,0.01263]
[1725777285480,0.652545,54540.0,54539.0,0.01263]
[1725777286351,0.83854206,54540.0,54539.0,0.00563]
[1725777286590,0.82854206,54540.0,54539.0,0.20013]
[1725777286807,0.642545,54540.0,54539.0,0.20013]
[1725777288156,0.642545,54540.0,54539.0,0.19713]
[1725777288365,0.648545,54540.0,54539.0,0.19813]
[1725777288575,0.652545,54540.0,54539.0,0.19813]
[1725777289038,0.6772986,54540.0,54539.0,0.19813]
[1725777289501,0.6802986,54540.0,54539.0,0.19813]
[1725777289710,0.6742986,54540.0,54539.0,0.19713]
[1725777290156,0.6802986,54540.0,54539.0,0.1980706]
[1725777296077,0.651545,54540.0,54539.0,0.1980706]
[1725777299443,0.68029838,54540.0,54539.0,0.1980706]
[1725777306150,0.651545,54540.0,54539.0,0.1980706]
[1725777306368,0.651545,54540.0,54539.0,0.1102706]
[1725777306598,0.66019589,54540.0,54539.0,0.0025706]
[1725777307537,0.68895067,54540.0,54539.0,0.0025706]
[1725777309716,0.68895067,54540.0,54539.0,0.0874706]
[1725777311482,0.68895067,54540.0,54539.0,0.1912706]
[1725777312378,0.56060467,54540.0,54539.0,0.1912706]
[1725777313271,0.68895067,54540.0,54539.0,0.1063706]
[1725777316186,0.66019589,54540.0,54539.0,0.1063706]
[1725777319274,0.68895011,54540.0,54539.0,0.1063706]
[1725777323129,0.68895011,54540.0,54539.0,0.1912706]
[1725777326095,0.66019589,54540.0,54539.0,0.1912706]
[1725777329289,0.68894988,54540.0,54539.0,0.1912706]
[1725777331038,0.85420176,54540.0,54539.0,0.1912706]
[1725777335071,0.85420893,54540.0,54539.0,0.1912706]
[1725777336032,0.82545494,54540.0,54539.0,0.1912706]
[1725777339312,0.85420905,54540.0,54539.0,0.1912706]
[1725777345267,0.85420905,54540.0,54539.0,0.1063706]
[1725777345480,0.85420905,54540.0,54539.0,0.1875706]
[1725777345937,0.82545494,54540.0,54539.0,0.1875706]
[1725777349199,0.85420922,54540.0,54539.0,0.1875706]
[1725777350311,0.85412241,54540.0,54539.0,0.1875706]
[1725777355324,0.85415499,54540.0,54539.0,0.1875706]
[1725777356005,0.82540071,54540.0,54539.0,0.1875706]
[1725777359366,0.85415479,54540.0,54539.0,0.1875706]
[1725777362590,0.85417573,54540.0,54539.0,0.1875706]
[1725777363919,0.85417882,54540.0,54539.0,0.1875706]
[1725777365048,0.59898918,54540.0,54539.0,0.1875706]
[1725777365316,0.59898918,54540.0,54539.0,0.5726156]
[1725777365317,0.01996825,54540.0,54539.0,0.5726156]
[1725777365557,0.16522885,54552.0,54546.0,0.357364]
[1725777365782,0.16522885,54553.0,54552.0,0.384952]
[1725777365999,0.16522885,54553.0,54552.0,0.572852]
[1725777366284,0.000816,54555.0,54554.0,0.829465]
[1725777366517,0.000816,54555.0,54554.0,1.086091]
[1725777366767,0.000816,54555.0,54554.0,1.080091]
[1725777367001,0.000816,54555.0,54554.0,1.067091]
[1725777367907,0.001816,54555.0,54554.0,1.074091]
[1725777368139,0.001816,54555.0,54554.0,1.079091]
[1725777368610,0.0305592,54555.0,54554.0,1.079091]
[1725777369547,0.0295592,54555.0,54554.0,1.067091]
[1725777369765,0.0295592,54555.0,54554.0,1.072091]
[1725777369975,0.0295592,54555.0,54554.0,1.080091]
[1725777372695,0.0295592,54555.0,54554.0,0.823465]
[1725777374303,0.0295592,54555.0,54554.0,0.815465]
[1725777374514,0.0295592,54555.0,54554.0,0.810465]
[1725777374726,0.0295592,54555.0,54554.0,0.819465]
[1725777376088,0.0295592,54555.0,54554.0,0.824465]
[1725777376308,0.0295592,54555.0,54554.0,0.810465]
[1725777376743,0.0295592,54555.0,54554.0,0.823465]
[1725777376976,0.0295592,54555.0,54554.0,0.818465]
[1725777377406,0.0295592,54555.0,54554.0,0.815465]
[1725777377614,0.0295592,54555.0,54554.0,0.818465]
[1725777378056,0.0295592,54555.0,54554.0,0.823465]
[1725777382088,0.0295592,54555.0,54554.0,1.080091]
[1725777382750,0.0295592,54555.0,54554.0,1.067091]
[1725777383189,0.0295592,54555.0,54554.0,1.082091]
[1725777383416,0.0295592,54555.0,54554.0,1.076091]
[1725777383629,0.0295592,54555.0,54554.0,1.067091]
[1725777383843,0.0295592,54555.0,54554.0,1.079091]
[1725777384053,0.0295592,54555.0,54554.0,1.093091]
[1725777384481,0.0295592,54555.0,54554.0,1.081091]
[1725777384728,0.0295592,54555.0,54554.0,1.067091]
[1725777385839,0.0295592,54555.0,54554.0,1.079091]
[1725777386725,0.0295592,54555.0,54554.0,1.093091]
[1725777387176,0.0295592,54555.0,54554.0,1.067091]
[1725777387612,0.0295592,54555.0,54554.0,1.093091]
[1725777388076,0.0295592,54555.0,54554.0,1.079091]
[1725777388570,0.0295592,54555.0,54554.0,1.093091]
[1725777388783,0.25655,54571.0,54557.0,0.0794]
[1725777388784,0.256553,54570.0,54557.0,0.0794]
[1725777389006,0.02874231,54560.0,54559.0,0.336002]
[1725777389232,0.128279,54569.0,54564.0,0.128288]
[1725777389483,0.12828,54568.0,54565.0,0.1428]
[1725777389964,0.12828,54568.0,54565.0,0.271086]
[1725777390857,0.15702073,54568.0,54565.0,0.271086]
[1725777391069,0.12828,54568.0,54565.0,0.1428]
[1725777392678,0.15702079,54568.0,54565.0,0.1428]
[1725777393660,0.128282,54567.0,54565.0,0.1428]
[1725777394984,0.128282,54567.0,54565.0,0.1438]
[1725777396145,0.128282,54567.0,54566.0,0.1428]
[1725777397721,0.128282,54567.0,54566.0,0.1438]
[1725777398167,0.02874079,54568.0,54566.0,0.1438]
[1725777399343,0.02874079,54568.0,54566.0,0.1428]
[1725777399551,0.15702279,54568.0,54566.0,0.1428]
[1725777401777,0.128282,54567.0,54566.0,0.1428]
[1725777403327,0.128282,54567.0,54566.0,0.1438]
[1725777403793,0.256546,54571.0,54566.0,0.1438]
[1725777404006,0.128282,54567.0,54566.0,0.1438]
[1725777404873,0.128282,54567.0,54566.0,0.1428]
[1725777405862,0.128282,54567.0,54566.0,0.1438]
[1725777408161,0.256553,54570.0,54566.0,0.1438]
[1725777408162,0.12828,54568.0,54566.0,0.1438]
[1725777409235,0.12828,54568.0,54566.0,0.1428]
[1725777411535,0.26568919,54568.0,54566.0,0.1428]
[1725777412671,0.13740919,54568.0,54566.0,0.1428]
[1725777413132,0.26569019,54568.0,54566.0,0.1428]
[1725777413837,0.128281,54568.0,54566.0,0.1428]
[1725777414926,0.15702115,54568.0,54566.0,0.14443]
[1725777417942,0.02874015,54568.0,54567.0,0.1383]
[1725777421110,0.02874015,54568.0,54567.0,0.523147]
[1725777421326,0.02874015,54568.0,54567.0,0.779712]
[1725777422616,0.02874015,54568.0,54567.0,0.787712]
[1725777423774,0.02874015,54568.0,54567.0,0.792712]
[1725777424215,0.02874015,54568.0,54567.0,0.536147]
[1725777424450,0.02874015,54568.0,54567.0,0.279582]
[1725777424661,0.16641097,54568.0,54567.0,0.536147]
[1725777425288,0.02874015,54568.0,54567.0,0.536147]
[1725777426395,0.15702015,54568.0,54567.0,0.1513]
[1725777427170,0.02874015,54568.0,54567.0,0.536147]
[1725777428327,0.02874015,54568.0,54567.0,0.279582]
[1725777429406,0.16643226,54568.0,54567.0,0.281212]
[1725777430901,0.16643655,54568.0,54567.0,0.281212]
[1725777431123,0.02874015,54568.0,54567.0,0.537777]
[1725777431552,0.02874015,54568.0,54567.0,0.794342]
[1725777434143,0.15702015,54568.0,54567.0,0.01463]
[1725777434381,0.67014015,54568.0,54567.0,0.01463]
[1725777434584,0.81482678,54568.0,54567.0,0.01463]
[1725777434788,0.90616145,54568.0,54567.0,0.01463]
[1725777435635,0.64960145,54568.0,54567.0,0.01463]
[1725777436072,0.81484599,54568.0,54567.0,0.01463]
[1725777436472,0.64960145,54568.0,54567.0,0.01463]
[1725777437721,0.67834213,54568.0,54567.0,0.01463]
[1725777438816,0.64960145,54568.0,54567.0,0.01463]
[1725777439251,0.64960145,54568.0,54567.0,0.07623]
[1725777439472,0.81482481,54568.0,54567.0,0.07623]
[1725777440200,0.55826481,54568.0,54567.0,0.07623]
[1725777441122,0.39304145,54568.0,54567.0,0.07623]
[1725777442256,0.42178193,54568.0,54567.0,0.07623]
[1725777444307,0.03694193,54568.0,54567.0,0.15153]
[1725777444532,0.03694193,54568.0,54567.0,0.279812]
[1725777444994,0.17457235,54568.0,54567.0,0.279812]
[1725777445852,0.14583187,54568.0,54567.0,0.279812]
[1725777446711,0.00820145,54568.0,54567.0,0.279812]
[1725777447608,0.00820145,54568.0,54567.0,0.792942]
[1725777447813,0.13844542,54570.0,54567.0,0.408095]
[1725777448035,0.13844542,54570.0,54569.0,0.522532]
[1725777448931,0.000815,54570.0,54569.0,0.522532]
[1725777449806,0.02955301,54570.0,54569.0,0.522532]
[1725777450017,0.02955301,54570.0,54569.0,0.525532]
[1725777451344,0.02955301,54570.0,54569.0,0.531532]
[1725777451345,0.0321198,54570.0,54569.0,0.531532]
[1725777451573,0.00338179,54570.0,54569.0,0.531532]
[1725777452810,0.00916891,54570.0,54569.0,0.531532]
[1725777453263,0.03790312,54570.0,54569.0,0.531532]
[1725777454879,0.03790312,54570.0,54569.0,0.009]
[1725777454880,0.67928012,54570.0,54569.0,0.009]
[1725777455089,0.84443021,54570.0,54569.0,0.009]
[1725777455976,0.38484,54568.0,54567.0,0.00163]
[1725777456435,0.64977219,54568.0,54567.0,0.00163]
[1725777457294,0.64977219,54568.0,54567.0,0.00263]
[1725777458858,0.64977219,54568.0,54567.0,0.00163]
[1725777459307,0.64977219,54568.0,54567.0,0.00263]
[1725777459542,0.64977219,54568.0,54567.0,0.00163]
[1725777459962,0.64977219,54568.0,54567.0,0.00263]
[1725777462134,0.64977219,54568.0,54567.0,0.00163]
[1725777462548,0.64977219,54568.0,54567.0,0.00263]
[1725777467119,0.394931,54555.0,54554.0,0.00163]
[1725777467357,0.908173,54555.0,54554.0,0.00163]
[1725777467606,1.17613628,54555.0,54554.0,0.00163]
[1725777467828,1.01107205,54555.0,54554.0,0.00163]
[1725777468060,1.01737628,54555.0,54554.0,0.00163]
[1725777468514,1.18227934,54555.0,54554.0,0.00163]
[1725777469200,1.18227698,54555.0,54554.0,0.00163]
[1725777469439,1.01737628,54555.0,54554.0,0.00163]
[1725777469665,1.18327698,54555.0,54554.0,0.00163]
[1725777469887,1.18527698,54555.0,54554.0,0.00563]
[1725777470097,1.18427698,54555.0,54554.0,0.00563]
[1725777470564,1.19127698,54555.0,54554.0,0.00263]
[1725777470783,1.18427698,54555.0,54554.0,0.00163]
[1725777470995,1.01937628,54555.0,54554.0,0.00163]
[1725777471231,1.02337628,54555.0,54554.0,0.00163]
[1725777472544,0.6416,54551.0,54550.0,0.0805]
[1725777473010,0.65080331,54551.0,54550.0,0.0805]
[1725777473902,0.68455294,54551.0,54550.0,0.0815]